[Event "44th Chess Olympiad Women 2022"]
[Site "Chennai"]
[Date "2022.08.02"]
[Round "5.42"]
[White "Caxita, Esperanca"]
[Black "Lohani, Sujana"]
[Result "1-0"]
[WhiteElo "1955"]
[BlackElo "1697"]
[Annotator "NA RC"]
[PlyCount "119"]
[EventDate "2022.??.??"]
[TimeControl "60"]

1. e4 {[%emt 0:00:06]} g6 {[%emt 0:00:28]} 2. d4 {[%emt 0:00:20]} Bg7 {[%emt 0:
00:00]} 3. c3 {[%emt 0:00:46]} d6 {[%emt 0:01:02]} 4. Nf3 {[%emt 0:00:26]} Nf6
{[%emt 0:01:25]} 5. Nbd2 {[%emt 0:00:23]} O-O {[%emt 0:03:02]} 6. Be2 {[%emt 0:
00:00]} c5 {[%emt 0:01:20]} 7. O-O {[%emt 0:01:41]} cxd4 {[%emt 0:03:18]} 8.
cxd4 {[%emt 0:00:19]} Nc6 {[%emt 0:05:06]} 9. b3 {[%emt 0:01:49]} e5 {[%emt 0:
00:00]} 10. d5 {[%emt 0:00:46]} Ne7 {[%emt 0:03:47]} 11. Ba3 {[%emt 0:00:58]}
a6 {[%emt 0:01:32]} 12. Rc1 {[%emt 0:02:23]} h6 {[%emt 0:02:39]} 13. Qc2 {
[%emt 0:00:38]} Ne8 {[%emt 0:02:57]} 14. Ne1 {[%emt 0:14:02]} f5 {[%emt 0:00:
00]} 15. f3 {[%emt 0:01:13]} f4 {[%emt 0:02:41]} 16. Nd3 {[%emt 0:02:54]} g5 {
[%emt 0:01:53]} 17. Nf2 {[%emt 0:03:21]} Rf6 {[%emt 0:03:08]} 18. Qc3 {[%emt 0:
00:00]} h5 {[%emt 0:02:08]} 19. Nc4 {[%emt 0:02:11]} b5 {[%emt 0:09:54]} 20.
Na5 {[%emt 0:02:28]} Rg6 {[%emt 0:02:50]} 21. h3 {[%emt 0:01:00]} Bf8 {[%emt 0:
00:00]} 22. Bb4 {[%emt 0:00:57]} Bd7 {[%emt 0:04:20]} 23. Qd2 {[%emt 0:05:24]}
Qb6 {[%emt 0:04:56]} 24. Kh2 {[%emt 0:01:02]} Nf6 {[%emt 0:01:22]} 25. Qd1 {
[%emt 0:06:58]} g4 {[%emt 0:01:19]} 26. fxg4 {[%emt 0:01:14]} hxg4 {[%emt 0:00:
00]} 27. Bxg4 {[%emt 0:07:07]} Bxg4 {[%emt 0:00:11]} 28. hxg4 {[%emt 0:00:34]}
Rh6+ {[%emt 0:00:45]} 29. Nh3 {[%emt 0:00:20]} Nxe4 {[%emt 0:01:00]} 30. Nc6 {
[%emt 0:08:32]} Nf2 {[%emt 0:12:04]} 31. Qf3 {[%emt 0:05:22]} Nxh3 {[%emt 0:00:
00]} 32. gxh3 {[%emt 0:01:14]} Ng6 {[%emt 0:00:30]} 33. Be1 {[%emt 0:02:58]}
Re8 {[%emt 0:00:40]} 34. Qe4 {[%emt 0:01:36]} Qe3 {[%emt 0:04:23]} 35. Qxe3 {
[%emt 0:07:41]} fxe3 {[%emt 0:00:06]} 36. Bg3 {[%emt 0:00:36]} Rh7 {[%emt 0:00:
00]} 37. Rce1 {[%emt 0:01:10]} Bh6 {[%emt 0:00:33]} 38. Rf6 {[%emt 0:00:40]}
Nf4 {[%emt 0:03:25]} 39. Rxd6 {[%emt 0:01:50]} Bf8 {[%emt 0:00:29]} 40. Bxf4 {
[%emt 0:02:15]} Bxd6 {[%emt 0:00:53]} 41. Bxe3 {[%emt 0:30:20]} e4+ {[%emt 0:
00:00]} 42. Kg2 {[%emt 0:00:19]} Rf8 {[%emt 0:00:39]} 43. Nd4 {[%emt 0:02:35]}
Rc7 {[%emt 0:04:12]} 44. Re2 {[%emt 0:00:47]} Rc3 {[%emt 0:00:00]} 45. Nf5 {
[%emt 0:00:00]} Rd8 {[%emt 0:00:00]} 46. Bd4 {[%emt 0:00:00]} Rd3 {[%emt 0:00:
00]} 47. Rxe4 {[%emt 0:00:00]} Rd2+ {[%emt 0:00:00]} 48. Kf3 {[%emt 0:00:00]}
Bf8 {[%emt 0:00:00]} 49. Re6 {[%emt 0:00:00]} Rxd5 {[%emt 0:00:00]} 50. Ke4 {
[%emt 0:00:00]} Rd7 {[%emt 0:00:00]} 51. Rxa6 {[%emt 0:00:00]} Rg2 {[%emt 0:00:
00]} 52. a4 {[%emt 0:00:00]} bxa4 {[%emt 0:00:00]} 53. bxa4 {[%emt 0:00:00]}
Rh7 {[%emt 0:00:00]} 54. Kf3 {[%emt 0:00:00]} Rh2 {[%emt 0:00:00]} 55. h4 {
[%emt 0:00:00]} R7xh4 {[%emt 0:00:30]} 56. Nxh4 {[%emt 0:00:00]} Rxh4 {[%emt 0:
00:00]} 57. a5 {[%emt 0:00:00]} Rh3+ {[%emt 0:00:32]} 58. Ke4 {[%emt 0:00:06]}
Ra3 {[%emt 0:01:15]} 59. Ra8 {[%emt 0:00:36]} Kf7 {[%emt 0:00:23]} 60. Rxf8+ {
[%emt 0:00:37]} 1-0

[Event "44th Chess Olympiad Women 2022"]
[Site "Chennai"]
[Date "2022.08.02"]
[Round "5.43"]
[White "Gjergji, Rozana"]
[Black "De la Riva Real, Jana"]
[Result "1-0"]
[WhiteElo "1920"]
[BlackElo "1167"]
[Annotator "NA RC"]
[PlyCount "85"]
[EventDate "2022.??.??"]
[TimeControl "60"]

1. e4 {[%emt 0:00:30]} e6 {[%emt 0:00:10]} 2. d4 {[%emt 0:00:00]} d5 {[%emt 0:
00:00]} 3. e5 {[%emt 0:00:34]} c5 {[%emt 0:00:24]} 4. c3 {[%emt 0:00:05]} Nc6 {
[%emt 0:00:22]} 5. Nf3 {[%emt 0:00:37]} Qb6 {[%emt 0:01:28]} 6. Be2 {[%emt 0:
00:00]} Nge7 {[%emt 0:04:35]} 7. Na3 {[%emt 0:02:30]} Nf5 {[%emt 0:05:13]} 8.
Nc2 {[%emt 0:00:44]} Be7 {[%emt 0:01:25]} 9. O-O {[%emt 0:00:40]} O-O {[%emt 0:
00:00]} 10. Rb1 {[%emt 0:07:18]} Bd7 {[%emt 0:06:05]} 11. Ne3 {[%emt 0:02:43]}
Nxe3 {[%emt 0:03:30]} 12. fxe3 {[%emt 0:02:08]} cxd4 {[%emt 0:02:08]} 13. exd4
{[%emt 0:00:14]} f6 {[%emt 0:02:07]} 14. exf6 {[%emt 0:02:52]} Bxf6 {[%emt 0:
00:00]} 15. Kh1 {[%emt 0:00:51]} Rae8 {[%emt 0:04:50]} 16. Bf4 {[%emt 0:08:37]}
Ne7 {[%emt 0:17:03]} 17. Bd3 {[%emt 0:10:56]} Bb5 {[%emt 0:06:22]} 18. Bxb5 {
[%emt 0:10:19]} Qxb5 {[%emt 0:00:20]} 19. Re1 {[%emt 0:00:20]} Ng6 {[%emt 0:00:
00]} 20. Bg3 {[%emt 0:00:49]} Qd7 {[%emt 0:03:27]} 21. Qd3 {[%emt 0:03:13]} Re7
{[%emt 0:10:39]} 22. Re2 {[%emt 0:10:42]} Rfe8 {[%emt 0:01:32]} 23. Rbe1 {
[%emt 0:00:57]} a6 {[%emt 0:04:02]} 24. h4 {[%emt 0:03:28]} Nh8 {[%emt 0:06:46]
} 25. Bh2 {[%emt 0:02:30]} Nf7 {[%emt 0:02:54]} 26. g4 {[%emt 0:01:36]} g6 {
[%emt 0:01:45]} 27. g5 {[%emt 0:01:35]} Bh8 {[%emt 0:02:20]} 28. Bf4 {[%emt 0:
00:00]} Nd6 {[%emt 0:02:32]} 29. Nh2 {[%emt 0:00:41]} Ne4 {[%emt 0:01:06]} 30.
Ng4 {[%emt 0:00:26]} Bg7 {[%emt 0:00:38]} 31. Rh2 {[%emt 0:01:47]} Rf7 {
[%emt 0:02:24]} 32. Be5 {[%emt 0:03:54]} Qe7 {[%emt 0:01:46]} 33. Bf6 {[%emt 0:
00:00]} Nxf6 {[%emt 0:01:43]} 34. gxf6 {[%emt 0:00:13]} Rxf6 {[%emt 0:01:11]}
35. Nxf6+ {[%emt 0:00:12]} Bxf6 {[%emt 0:00:04]} 36. Qh3 {[%emt 0:01:30]} Qg7 {
[%emt 0:01:54]} 37. Rxe6 {[%emt 0:00:22]} Rxe6 {[%emt 0:00:45]} 38. Qxe6+ {
[%emt 0:00:02]} Qf7 {[%emt 0:00:06]} 39. Qg4 {[%emt 0:00:56]} Qe7 {[%emt 0:00:
00]} 40. Re2 {[%emt 0:00:30]} Qf7 {[%emt 0:00:50]} 41. h5 {[%emt 0:31:19]} g5 {
[%emt 0:30:26]} 42. h6 {[%emt 0:00:12]} b5 {[%emt 0:00:00]} 43. Qc8+ {[%emt 0:
00:00]} 1-0

[Event "44th Chess Olympiad Women 2022"]
[Site "Chennai"]
[Date "2022.08.02"]
[Round "5.43"]
[White "Henderson de La Fuente, Andrea"]
[Black "Shabanaj, Eglantina"]
[Result "1-0"]
[WhiteElo "1962"]
[BlackElo "1940"]
[Annotator "NA RC"]
[PlyCount "79"]
[EventDate "2022.??.??"]
[TimeControl "60"]

1. e4 {[%emt 0:00:04]} e6 {[%emt 0:00:05]} 2. d3 {[%emt 0:02:20]} c5 {[%emt 0:
00:00]} 3. g3 {[%emt 0:00:24]} Nc6 {[%emt 0:00:12]} 4. Bg2 {[%emt 0:00:45]} g6
{[%emt 0:00:08]} 5. Be3 {[%emt 0:00:23]} Bg7 {[%emt 0:00:34]} 6. Nc3 {[%emt 0:
00:00]} d6 {[%emt 0:00:09]} 7. Qd2 {[%emt 0:00:12]} Nge7 {[%emt 0:04:51]} 8.
Nge2 {[%emt 0:00:59]} Nd4 {[%emt 0:03:21]} 9. Nc1 {[%emt 0:06:04]} Rb8 {
[%emt 0:03:19]} 10. Nd1 {[%emt 0:00:46]} b5 {[%emt 0:03:25]} 11. c3 {[%emt 0:
00:00]} Ndc6 {[%emt 0:00:16]} 12. Bh6 {[%emt 0:01:38]} O-O {[%emt 0:03:12]} 13.
h4 {[%emt 0:13:15]} f6 {[%emt 0:10:28]} 14. Bxg7 {[%emt 0:09:18]} Kxg7 {
[%emt 0:00:09]} 15. h5 {[%emt 0:07:37]} g5 {[%emt 0:03:18]} 16. h6+ {[%emt 0:
00:00]} Kh8 {[%emt 0:02:06]} 17. f4 {[%emt 0:03:32]} Rg8 {[%emt 0:01:56]} 18.
Ne3 {[%emt 0:11:19]} d5 {[%emt 0:05:39]} 19. Ng4 {[%emt 0:09:04]} Ng6 {[%emt 0:
00:00]} 20. e5 {[%emt 0:00:45]} fxe5 {[%emt 0:06:37]} 21. fxg5 {[%emt 0:00:07]}
Nce7 {[%emt 0:01:30]} 22. Qf2 {[%emt 0:10:35]} Nf5 {[%emt 0:01:14]} 23. Nf6 {
[%emt 0:00:21]} Rf8 {[%emt 0:01:03]} 24. g4 {[%emt 0:01:11]} Nd6 {[%emt 0:00:
00]} 25. Qxc5 {[%emt 0:00:09]} Nf7 {[%emt 0:02:33]} 26. Ne2 {[%emt 0:05:56]}
Nxg5 {[%emt 0:01:42]} 27. Nh5 {[%emt 0:00:10]} Nh4 {[%emt 0:10:11]} 28. Rxh4 {
[%emt 0:01:49]} Nf3+ {[%emt 0:00:25]} 29. Bxf3 {[%emt 0:01:33]} Qxh4+ {[%emt 0:
00:00]} 30. Neg3 {[%emt 0:01:12]} Rxf3 {[%emt 0:04:35]} 31. Qc7 {[%emt 0:01:33]
} Qg5 {[%emt 0:01:09]} 32. Qxb8 {[%emt 0:02:46]} Qe3+ {[%emt 0:01:34]} 33. Ne2
{[%emt 0:00:02]} Rf8 {[%emt 0:01:16]} 34. Qd6 {[%emt 0:01:35]} Kg8 {[%emt 0:00:
00]} 35. Qc7 {[%emt 0:01:24]} Qxh6 {[%emt 0:03:19]} 36. Qxe5 {[%emt 0:00:19]}
Bd7 {[%emt 0:00:48]} 37. Nef4 {[%emt 0:00:30]} Rf7 {[%emt 0:02:28]} 38. g5 {
[%emt 0:01:01]} Qf8 {[%emt 0:00:02]} 39. Nf6+ {[%emt 0:00:19]} Rxf6 {[%emt 0:
00:00]} 40. gxf6 {[%emt 0:00:14]} 1-0

[Event "44th Chess Olympiad Women 2022"]
[Site "Chennai"]
[Date "2022.08.02"]
[Round "5.45"]
[White "Kaslan, Catherine"]
[Black "Cooke, Suzie G."]
[Result "1-0"]
[WhiteElo "1872"]
[BlackElo "1936"]
[Annotator "NA RC"]
[PlyCount "83"]
[EventDate "2022.??.??"]
[TimeControl "60"]

1. e4 {[%emt 0:00:06]} e6 {[%emt 0:00:12]} 2. d4 {[%emt 0:00:11]} d5 {[%emt 0:
00:00]} 3. Nd2 {[%emt 0:00:26]} Nf6 {[%emt 0:00:23]} 4. e5 {[%emt 0:00:29]}
Nfd7 {[%emt 0:00:14]} 5. Bd3 {[%emt 0:01:17]} c5 {[%emt 0:00:22]} 6. c3 {
[%emt 0:00:15]} Nc6 {[%emt 0:00:26]} 7. Ne2 {[%emt 0:00:19]} cxd4 {[%emt 0:00:
00]} 8. cxd4 {[%emt 0:00:30]} f6 {[%emt 0:02:19]} 9. exf6 {[%emt 0:04:57]} Nxf6
{[%emt 0:00:20]} 10. Nf3 {[%emt 0:03:17]} Bd6 {[%emt 0:01:45]} 11. O-O {
[%emt 0:03:32]} Qc7 {[%emt 0:00:51]} 12. a3 {[%emt 0:07:00]} O-O {[%emt 0:00:
00]} 13. Re1 {[%emt 0:13:00]} e5 {[%emt 0:08:45]} 14. dxe5 {[%emt 0:14:37]}
Nxe5 {[%emt 0:01:20]} 15. Ned4 {[%emt 0:09:48]} Nxd3 {[%emt 0:19:51]} 16. Qxd3
{[%emt 0:00:12]} Qf7 {[%emt 0:23:04]} 17. Bg5 {[%emt 0:10:09]} Ne4 {[%emt 0:00:
00]} 18. Bh4 {[%emt 0:10:04]} Bf5 {[%emt 0:03:52]} 19. Nxf5 {[%emt 0:01:08]}
Qxf5 {[%emt 0:00:06]} 20. Rad1 {[%emt 0:01:11]} Bc7 {[%emt 0:16:06]} 21. Qxd5+
{[%emt 0:00:59]} Qxd5 {[%emt 0:00:02]} 22. Rxd5 {[%emt 0:00:08]} Nf6 {[%emt 0:
00:00]} 23. Bxf6 {[%emt 0:01:16]} Rxf6 {[%emt 0:00:21]} 24. Rd7 {[%emt 0:00:52]
} Rc6 {[%emt 0:01:40]} 25. g3 {[%emt 0:02:55]} Bb6 {[%emt 0:03:00]} 26. Ree7 {
[%emt 0:03:16]} Rc2 {[%emt 0:01:12]} 27. Rxg7+ {[%emt 0:00:53]} Kh8 {[%emt 0:
00:00]} 28. Rxh7+ {[%emt 0:00:27]} Kg8 {[%emt 0:00:02]} 29. Rdg7+ {[%emt 0:00:
00]} Kf8 {[%emt 0:00:03]} 30. Rf7+ {[%emt 0:00:32]} Kg8 {[%emt 0:00:26]} 31.
Ng5 {[%emt 0:00:57]} Re8 {[%emt 0:01:19]} 32. Rhg7+ {[%emt 0:02:38]} Kh8 {
[%emt 0:00:04]} 33. Rg6 {[%emt 0:00:14]} Rc7 {[%emt 0:02:20]} 34. Rxc7 {
[%emt 0:00:07]} Bxc7 {[%emt 0:00:07]} 35. Re6 {[%emt 0:00:40]} Rc8 {[%emt 0:00:
00]} 36. Nf7+ {[%emt 0:02:42]} Kg7 {[%emt 0:01:06]} 37. Nd6 {[%emt 0:00:28]}
Bxd6 {[%emt 0:00:48]} 38. Rxd6 {[%emt 0:00:06]} Rc7 {[%emt 0:00:09]} 39. h4 {
[%emt 0:00:30]} b5 {[%emt 0:00:30]} 40. b4 {[%emt 0:00:51]} a5 {[%emt 0:00:16]}
41. bxa5 {[%emt 0:30:42]} Ra7 {[%emt 0:30:22]} 42. a6 {[%emt 0:00:19]} 1-0

[Event "44th Chess Olympiad Women 2022"]
[Site "Chennai"]
[Date "2022.08.02"]
[Round "5.47"]
[White "Zhang, Jasmine Haomo"]
[Black "Farrugia, Jamie"]
[Result "1-0"]
[WhiteElo "1972"]
[BlackElo "1547"]
[Annotator "NA RC"]
[PlyCount "105"]
[EventDate "2022.??.??"]
[TimeControl "60"]

1. d4 {[%emt 0:00:03]} d5 {[%emt 0:00:09]} 2. Bf4 {[%emt 0:00:06]} Nf6 {
[%emt 0:00:08]} 3. e3 {[%emt 0:00:06]} c5 {[%emt 0:01:06]} 4. Nf3 {[%emt 0:00:
00]} Nc6 {[%emt 0:00:19]} 5. Nbd2 {[%emt 0:00:54]} cxd4 {[%emt 0:06:30]} 6.
exd4 {[%emt 0:00:07]} Bg4 {[%emt 0:00:26]} 7. c3 {[%emt 0:03:20]} e6 {[%emt 0:
00:00]} 8. Qb3 {[%emt 0:02:05]} Qc8 {[%emt 0:15:44]} 9. Bd3 {[%emt 0:02:46]}
Be7 {[%emt 0:02:35]} 10. O-O {[%emt 0:01:47]} O-O {[%emt 0:01:37]} 11. Ne5 {
[%emt 0:02:36]} Bh5 {[%emt 0:11:40]} 12. Qc2 {[%emt 0:08:49]} Bd6 {[%emt 0:00:
00]} 13. h3 {[%emt 0:07:52]} Qc7 {[%emt 0:11:12]} 14. g4 {[%emt 0:07:43]} Bg6 {
[%emt 0:05:18]} 15. Nxg6 {[%emt 0:01:42]} fxg6 {[%emt 0:04:43]} 16. Bxd6 {
[%emt 0:02:44]} Qxd6 {[%emt 0:00:05]} 17. Rae1 {[%emt 0:01:14]} Qf4 {[%emt 0:
00:00]} 18. Re3 {[%emt 0:02:08]} Rac8 {[%emt 0:02:31]} 19. Qd1 {[%emt 0:01:38]}
e5 {[%emt 0:02:53]} 20. dxe5 {[%emt 0:02:55]} Nxe5 {[%emt 0:00:09]} 21. Qe2 {
[%emt 0:00:57]} Rce8 {[%emt 0:04:02]} 22. Re1 {[%emt 0:17:08]} Nexg4 {[%emt 0:
00:00]} 23. hxg4 {[%emt 0:00:12]} Nxg4 {[%emt 0:00:04]} 24. Nf1 {[%emt 0:00:55]
} Nxe3 {[%emt 0:09:21]} 25. Nxe3 {[%emt 0:05:17]} Qg5+ {[%emt 0:00:17]} 26. Kf1
{[%emt 0:04:45]} Qh4 {[%emt 0:00:10]} 27. Qd2 {[%emt 0:05:50]} Qh1+ {[%emt 0:
00:00]} 28. Ke2 {[%emt 0:00:05]} Qf3+ {[%emt 0:01:44]} 29. Kf1 {[%emt 0:00:04]}
h5 {[%emt 0:02:06]} 30. Bxg6 {[%emt 0:01:59]} Re5 {[%emt 0:03:05]} 31. Bc2 {
[%emt 0:04:54]} h4 {[%emt 0:00:22]} 32. Bd1 {[%emt 0:00:22]} Qg3 {[%emt 0:00:
00]} 33. Ng4 {[%emt 0:02:33]} Ref5 {[%emt 0:02:39]} 34. Qe3 {[%emt 0:00:18]}
Qd6 {[%emt 0:01:04]} 35. Qe6+ {[%emt 0:00:27]} Qxe6 {[%emt 0:00:08]} 36. Rxe6 {
[%emt 0:00:04]} h3 {[%emt 0:00:16]} 37. Re3 {[%emt 0:01:47]} h2 {[%emt 0:01:13]
} 38. Rh3 {[%emt 0:00:07]} g6 {[%emt 0:00:32]} 39. Nh6+ {[%emt 0:00:17]} Kg7 {
[%emt 0:00:18]} 40. Nxf5+ {[%emt 0:00:05]} Rxf5 {[%emt 0:00:19]} 41. Rxh2 {
[%emt 0:30:07]} b6 {[%emt 0:01:10]} 42. Bc2 {[%emt 0:00:00]} Rf6 {[%emt 0:00:
00]} 43. Rg2 {[%emt 0:00:00]} Kh6 {[%emt 0:03:04]} 44. Rxg6+ {[%emt 0:00:00]}
Rxg6 {[%emt 0:00:12]} 45. Bxg6 {[%emt 0:00:00]} Kxg6 {[%emt 0:00:03]} 46. Ke2 {
[%emt 0:00:00]} Kf5 {[%emt 0:00:20]} 47. Ke3 {[%emt 0:00:00]} Ke5 {[%emt 0:00:
00]} 48. Kd3 {[%emt 0:00:00]} b5 {[%emt 0:00:25]} 49. b3 {[%emt 0:00:00]} a5 {
[%emt 0:01:17]} 50. a3 {[%emt 0:00:00]} Kd6 {[%emt 0:03:21]} 51. Kd4 {[%emt 0:
00:00]} Kc6 {[%emt 0:00:06]} 52. f4 {[%emt 0:00:00]} Kd6 {[%emt 0:00:17]} 53.
f5 {[%emt 0:00:00]} 1-0

[Event "44th Chess Olympiad Women 2022"]
[Site "Chennai"]
[Date "2022.08.02"]
[Round "5.51"]
[White "Zairbek kyzy, Begimai"]
[Black "Nihaya, Ahmed"]
[Result "1-0"]
[WhiteElo "1949"]
[BlackElo "1233"]
[Annotator "NA RC"]
[PlyCount "93"]
[EventDate "2022.??.??"]
[TimeControl "60"]

1. e4 {[%emt 0:00:02]} e5 {[%emt 0:00:09]} 2. Nf3 {[%emt 0:00:04]} Nc6 {
[%emt 0:00:04]} 3. Bc4 {[%emt 0:00:04]} Nf6 {[%emt 0:01:36]} 4. Ng5 {[%emt 0:
00:00]} d5 {[%emt 0:00:12]} 5. exd5 {[%emt 0:00:06]} Na5 {[%emt 0:00:12]} 6.
Bb5+ {[%emt 0:00:05]} c6 {[%emt 0:00:13]} 7. dxc6 {[%emt 0:00:16]} bxc6 {
[%emt 0:00:10]} 8. Bd3 {[%emt 0:00:11]} h6 {[%emt 0:01:36]} 9. Ne4 {[%emt 0:00:
00]} Nxe4 {[%emt 0:02:44]} 10. Bxe4 {[%emt 0:00:54]} Bb7 {[%emt 0:03:07]} 11.
d3 {[%emt 0:02:10]} Qb6 {[%emt 0:01:44]} 12. O-O {[%emt 0:00:27]} Bd6 {[%emt 0:
00:00]} 13. Qg4 {[%emt 0:02:23]} g6 {[%emt 0:04:00]} 14. Nc3 {[%emt 0:03:37]}
Be7 {[%emt 0:02:45]} 15. Na4 {[%emt 0:10:23]} Qd4 {[%emt 0:04:10]} 16. c4 {
[%emt 0:03:52]} c5 {[%emt 0:08:35]} 17. Be3 {[%emt 0:00:58]} Qd7 {[%emt 0:00:
00]} 18. Qxd7+ {[%emt 0:06:03]} Kxd7 {[%emt 0:00:09]} 19. Bxb7 {[%emt 0:00:46]}
Nxb7 {[%emt 0:01:21]} 20. f4 {[%emt 0:01:08]} f5 {[%emt 0:01:43]} 21. fxe5 {
[%emt 0:01:12]} Ke6 {[%emt 0:00:14]} 22. Rfe1 {[%emt 0:00:30]} h5 {[%emt 0:00:
00]} 23. b4 {[%emt 0:02:48]} Rac8 {[%emt 0:00:47]} 24. Rac1 {[%emt 0:01:42]} g5
{[%emt 0:01:43]} 25. bxc5 {[%emt 0:01:09]} Nxc5 {[%emt 0:00:10]} 26. Nxc5+ {
[%emt 0:00:42]} Bxc5 {[%emt 0:00:10]} 27. d4 {[%emt 0:00:26]} Bb4 {[%emt 0:00:
00]} 28. d5+ {[%emt 0:00:14]} Kd7 {[%emt 0:00:47]} 29. Red1 {[%emt 0:02:08]} f4
{[%emt 0:01:41]} 30. Bd4 {[%emt 0:03:19]} Bc5 {[%emt 0:01:06]} 31. Kf1 {
[%emt 0:00:23]} Rhe8 {[%emt 0:00:14]} 32. e6+ {[%emt 0:01:00]} Kd6 {[%emt 0:00:
00]} 33. Ke2 {[%emt 0:02:58]} Bxd4 {[%emt 0:00:59]} 34. Rxd4 {[%emt 0:00:06]}
Rc5 {[%emt 0:00:59]} 35. Kd3 {[%emt 0:00:28]} Ra5 {[%emt 0:01:07]} 36. a4 {
[%emt 0:01:13]} Rc8 {[%emt 0:03:58]} 37. h4 {[%emt 0:02:07]} g4 {[%emt 0:01:18]
} 38. Rxf4 {[%emt 0:00:40]} Rxd5+ {[%emt 0:00:21]} 39. Rd4 {[%emt 0:00:58]}
Rxd4+ {[%emt 0:00:46]} 40. Kxd4 {[%emt 0:00:01]} Kxe6 {[%emt 0:00:13]} 41. Re1+
{[%emt 0:33:48]} Kf5 {[%emt 0:31:05]} 42. g3 {[%emt 0:02:30]} Rd8+ {[%emt 0:00:
00]} 43. Kc3 {[%emt 0:00:14]} a5 {[%emt 0:01:01]} 44. c5 {[%emt 0:00:21]} Rd5 {
[%emt 0:01:57]} 45. Kc4 {[%emt 0:01:12]} Rd2 {[%emt 0:01:16]} 46. Re3 {[%emt 0:
00:00]} Rc2+ {[%emt 0:04:21]} 47. Kb5 {[%emt 0:02:47]} 1-0

[Event "44th Chess Olympiad Women 2022"]
[Site "Chennai"]
[Date "2022.08.03"]
[Round "6.1"]
[White "Batsiashvili, Nino"]
[Black "Harika, Dronavalli"]
[Result "1/2-1/2"]
[WhiteElo "2466"]
[BlackElo "2517"]
[Annotator "TA"]
[PlyCount "65"]
[EventDate "2022.??.??"]
[TimeControl "60"]

{[%evp 20,65,30,0,0,8,23,0,0,-9,28,-7,0,-51,0,0,0,0,0,0,0,0,0,-3,-5,-6,0,-18,9,
0,0,0,0,0,0,0,0,0,0,0,0,0,0,0,0,0,0,0]} 1. d4 {[%emt 0:00:04]} d5 {[%emt 0:00:
00]} 2. c4 {[%emt 0:00:04]} e6 {[%emt 0:00:10]} 3. Nc3 {[%emt 0:00:05]} Nf6 {
[%emt 0:00:06]} 4. cxd5 {[%emt 0:00:07]} exd5 {[%emt 0:00:07]} 5. Bg5 {[%emt 0:
00:00]} Be7 {[%emt 0:00:38]} 6. Qc2 {[%emt 0:00:43]} O-O {[%emt 0:02:18]} 7. e3
{[%emt 0:00:09]} h6 {[%emt 0:00:22]} 8. Bh4 {[%emt 0:00:47]} c6 {[%emt 0:02:21]
} 9. Bd3 {[%emt 0:04:53]} Re8 {[%emt 0:01:11]} 10. Nge2 {[%emt 0:10:03]} Nbd7 {
[%emt 0:02:05]} 11. f3 {[%emt 0:03:18]} b5 $1 {[%emt 0:01:09] now scores much
better than the old 11...c5. D36: Queen's Gambit Declined: Exchange Variation:
Main line (5 Bg5 c6 6 Qc2).} (11... Bd6 $5 {[%cal Re8e3]}) 12. O-O {[%emt 0:01:
13]} Bb7 {[%emt 0:02:51]} 13. Bf2 {[%emt 0:02:52]} a6 {[%emt 0:01:08]} 14. Rad1
{[%emt 0:04:42] [#]} Rc8 $146 {[%emt 0:03:53]} ({Predecessor:} 14... c5 15. Qd2
c4 16. Bb1 b4 17. Na4 Bc6 18. b3 Bxa4 19. bxa4 Qa5 20. e4 dxe4 21. fxe4 Qxa4 {
1-0 (35) Dylag,E (2144)-Krainski,A (2066) Suwalki 2021}) 15. Ng3 {[%emt 0:09:
51]} (15. e4 $5 {[%cal Re4e5]}) 15... c5 {[%emt 0:04:42]} 16. Qd2 {[%emt 0:02:
23]} (16. dxc5 $11 Bxc5 17. e4) 16... Bf8 {[%emt 0:14:26]} ({Better is} 16...
c4 $15 17. Bc2 (17. Bf5 b4 $17) 17... b4) 17. dxc5 $11 {[%emt 0:09:51] The
position is equal.} Bxc5 {[%emt 0:06:54]} 18. Bf5 {[%emt 0:01:12]} Qb6 {
[%emt 0:03:20][%cal Rc5e3]} 19. e4 {[%emt 0:06:12]} Rcd8 {[%emt 0:05:30]} 20.
exd5 {[%emt 0:08:56]} Nxd5 {[%emt 0:25:03][%cal Yd5e3] [#] Hoping for ...Ne3!}
21. Nxd5 {[%emt 0:18:59]} Bxd5 {[%emt 0:00:06]} 22. b4 {[%emt 0:02:50]} ({
Don't go for} 22. Qxd5 $2 Bxf2+ 23. Rxf2 Nc5 $19) 22... Bxf2+ {[%emt 0:02:14]}
23. Qxf2 {[%emt 0:00:01]} Bc6 {[%emt 0:06:57]} 24. Bxd7 {[%emt 0:06:10]} (24.
Bc2 {keeps more tension.} g6 25. Rd6 Qxf2+ 26. Kxf2 Ne5 27. Rfd1) 24... Qxf2+ {
[%emt 0:00:09]} 25. Rxf2 {[%emt 0:00:14] [#] aiming for Rfd2.} Rxd7 {[%emt 0:
00:04]} 26. Rxd7 {[%emt 0:01:07]} Bxd7 {[%emt 0:00:04] Endgame KRB-KRN} 27. Ne4
{[%emt 0:00:19]} Be6 {[%emt 0:01:30]} 28. Rd2 {[%emt 0:00:44]} Ra8 {[%emt 0:01:
39]} 29. Nc5 {[%emt 0:01:08]} a5 {[%emt 0:00:00]} 30. Nxe6 {[%emt 0:01:46]}
fxe6 {[%emt 0:00:05]} 31. bxa5 {[%emt 0:00:00]} Rxa5 {[%emt 0:00:03]} 32. Kf2 {
[%emt 0:00:06]} Ra3 {[%emt 0:00:21]} 33. Rb2 {[%emt 0:00:16] An interesting
draw. Weighted Error Value: White=0.10 (very precise) /Black=0.08 (flawless)}
1/2-1/2